fUST/lending_fUST_20250830
["ID","MTS","AMOUNT","RATE_DAILY","PERIOD"]
[382169478,1756529440591,-3815.35310412,0.00024536,2]
[382169480,1756529440600,-500.0,0.00024572,2]
[382169482,1756529440609,-348.73,0.00024573,2]
[382169483,1756529440619,-522.97116217,0.00024573,2]
[382169485,1756529440629,-2726.92067758,0.00024573,2]
[382169487,1756529440638,-6135.57152455,0.00024573,2]
[382169489,1756529440648,-246.4100116,0.00024573,2]
[382169491,1756529440657,-601.55527953,0.00024573,2]
[382169493,1756529440666,-298.2512829,0.00024573,2]
[382169495,1756529440676,-304.54734965,0.00024591,2]
[382169496,1756529440685,-17181.19882273,0.00024648,2]
[382169498,1756529440695,-3815.35310412,0.00024655,2]
[382169500,1756529440704,-245.017,0.0002466,7]
[382169502,1756529440714,-4000.0,0.00024671,2]
[382169504,1756529440723,-606.64494225,0.00024673,2]
[382169506,1756529440733,-151.0,0.00024673,2]
[382169508,1756529440743,-152.08506562,0.00024673,2]
[382169510,1756529440752,-151.0,0.00024673,2]
[382169512,1756529440762,-151.0,0.00024673,2]
[382169513,1756529440771,-151.0,0.00024673,2]
[382169515,1756529440780,-154.01849018,0.00024673,2]
[382169517,1756529440793,-151.0,0.00024673,2]
[382169519,1756529440802,-500.0,0.00024673,2]
[382169521,1756529440811,-168.0,0.00024732,2]
[382169523,1756529440820,-3815.35310412,0.00024773,2]
[382169525,1756529440829,-1042.27,0.000248,3]
[382169526,1756529440838,-151.0,0.000248,7]
[382169528,1756529440849,-151.0,0.000248,7]
[382169530,1756529440858,-245.629842,0.000248,7]
[382169532,1756529440867,-152.100789,0.000248,7]
[382169534,1756529440876,-1002.903777,0.000248,2]
[382169536,1756529440885,-151.0,0.000248,7]
[382169538,1756529440896,-151.0,0.000248,7]
[382169540,1756529440905,-157.325539,0.000248,7]
[382169541,1756529440915,-157.325539,0.000248,7]
[382169543,1756529440926,-157.325539,0.000248,7]
[382169545,1756529440936,-157.325539,0.000248,7]
[382169546,1756529440945,-313.23033,0.000248,7]
[382169547,1756529440955,-313.23033,0.000248,7]
[382169548,1756529440966,-313.23033,0.000248,7]
[382169549,1756529440975,-313.23033,0.000248,7]
[382169550,1756529440986,-151.0,0.000248,7]
[382169551,1756529440995,-151.0,0.000248,7]
[382169552,1756529441004,-151.0,0.000248,7]
[382169553,1756529441013,-152.032529,0.000248,7]
[382169554,1756529441023,-151.0,0.000248,7]
[382169555,1756529441033,-152.512362,0.000248,7]
[382169556,1756529441042,-151.0,0.000248,7]
[382169557,1756529441053,-152.759313,0.000248,7]
[382169558,1756529441062,-151.0,0.000248,7]
[382169559,1756529441072,-234.946718,0.000248,7]
[382169560,1756529441081,-234.946718,0.000248,7]
[382169561,1756529441254,-234.946718,0.000248,7]
[382169562,1756529441266,-234.946718,0.000248,7]
[382169563,1756529441275,-151.0,0.000248,7]
[382169564,1756529441289,-151.0,0.000248,7]
[382169565,1756529441299,-151.0,0.000248,7]
[382169566,1756529441309,-826.583112,0.000248,7]
[382169567,1756529441319,-826.583112,0.000248,7]
[382169568,1756529441328,-826.583112,0.000248,7]
[382169569,1756529441340,-826.583112,0.000248,7]
[382169570,1756529441350,-425.65682239,0.000248,7]
[382169571,1756529441361,-151.0,0.000248,7]
[382169572,1756529441371,-151.0,0.000248,7]
[382169573,1756529441380,-529.89603018,0.000248,7]
[382169574,1756529441392,-151.0,0.000248,7]
[382169575,1756529441401,-151.0,0.000248,7]
[382169576,1756529441412,-168.0,0.00024815,2]
[382169577,1756529441423,-168.0,0.0002482,2]
[382169578,1756529441433,-508.84500176,0.00024821,2]
[382169579,1756529441443,-514.06367164,0.00024821,2]
[382169580,1756529441452,-501.18533833,0.00024821,2]
[382169581,1756529441461,-500.81760572,0.00024821,2]
[382169582,1756529441471,-506.90650667,0.00024821,2]
[382169583,1756529441479,-1002.16101035,0.00024821,2]
[382169584,1756529441489,-508.42938354,0.00024821,2]
[382169585,1756529441498,-502.02343305,0.00024821,2]
[382169586,1756529441507,-581.03945182,0.00024821,2]
[382169587,1756529441518,-1011.26493035,0.00024821,2]
[382169588,1756529441527,-1000.0,0.00024821,2]
[382169589,1756529441536,-151.0,0.00024821,7]
[382169590,1756529441547,-151.0,0.00024821,7]
[382169591,1756529441556,-153.057715,0.00024821,7]
[382169592,1756529441565,-151.0,0.00024821,7]
[382169593,1756529441575,-151.0,0.00024821,7]
[382169594,1756529441584,-151.0,0.00024821,7]
[382169595,1756529441594,-151.0,0.00024821,7]
[382169596,1756529441604,-151.0,0.00024821,7]
[382169597,1756529441613,-151.0,0.00024821,7]
[382169598,1756529441623,-151.0,0.00024821,7]
[382169599,1756529441632,-151.0,0.00024821,7]
[382169600,1756529441642,-151.0,0.00024821,7]
[382169601,1756529441652,-151.820447,0.00024821,7]
[382169602,1756529441662,-151.0,0.00024821,7]
[382169603,1756529441671,-151.0,0.00024821,7]
[382169604,1756529441680,-151.0,0.00024821,7]
[382169605,1756529441690,-151.0,0.00024821,7]
[382169606,1756529441699,-151.0,0.00024821,7]
[382169607,1756529441709,-151.0,0.00024821,7]
[382169608,1756529441720,-151.0,0.00024821,7]
[382169609,1756529441729,-151.0,0.00024821,7]
[382169610,1756529441739,-159.032414,0.00024821,7]
[382169611,1756529441748,-151.0,0.00024821,7]
[382169612,1756529441757,-151.681243,0.00024821,7]
[382169613,1756529441766,-156.070133,0.00024821,7]
[382169614,1756529441776,-156.070133,0.00024821,7]
[382169615,1756529441785,-156.070133,0.00024821,7]
[382169616,1756529441795,-156.070133,0.00024821,7]
[382169617,1756529441804,-151.0,0.00024821,7]
[382169618,1756529441813,-5000.0,0.00024834,2]
[382169619,1756529441822,-151.0,0.00024834,7]
[382169620,1756529441832,-151.0,0.00024834,7]
[382169621,1756529441841,-229.500264,0.00024834,7]
[382169622,1756529441850,-229.500264,0.00024834,7]
[382169623,1756529441860,-151.0,0.00024834,7]
[382169624,1756529441870,-229.500264,0.00024834,7]
[382169625,1756529441879,-151.0,0.00024834,7]
[382169626,1756529441889,-229.500264,0.00024834,7]
[382169627,1756529441898,-151.0,0.00024834,7]
[382169628,1756529441908,-151.0,0.00024834,7]
[382169629,1756529441917,-151.0,0.00024834,7]
[382169630,1756529441927,-151.0,0.00024834,7]
[382169631,1756529441936,-500.0,0.00024846,2]
[382169632,1756529441946,-500.31819818,0.00024873,2]
[382169633,1756529441955,-500.0,0.00024873,2]
[382169634,1756529441965,-500.0,0.00024873,2]
[382169635,1756529441975,-500.0,0.00024873,2]
[382169636,1756529441985,-500.0,0.00024873,2]
[382169637,1756529441994,-500.0,0.00024873,2]
[382169638,1756529442003,-223.32326634,0.00024873,2]
[382169639,1756529442013,-501.36180301,0.00024873,2]
[382169640,1756529442023,-500.0,0.00024873,2]
[382169641,1756529442033,-500.47871826,0.00024873,2]
[382169642,1756529442042,-502.0599897,0.00024873,2]
[382169643,1756529442051,-500.66150931,0.00024873,2]
[382169644,1756529442061,-501.99066418,0.00024873,2]
[382169645,1756529442071,-500.0,0.00024873,2]
[382169646,1756529442080,-503.98167098,0.00024873,2]
[382169647,1756529442090,-502.96254505,0.00024873,2]
[382169648,1756529442100,-501.09934721,0.00024873,2]
[382169649,1756529442110,-500.0,0.00024873,2]
[382169650,1756529442120,-623.96518007,0.00024873,2]
[382169651,1756529442130,-500.0,0.00024873,2]
[382169652,1756529442140,-500.51805973,0.00024873,2]
[382169653,1756529442150,-500.0,0.00024873,2]
[382169654,1756529442159,-527.22706675,0.00024873,2]
[382169655,1756529442169,-505.87389515,0.00024873,2]
[382169656,1756529442178,-500.0,0.00024873,2]
[382169657,1756529442188,-500.0,0.00024873,2]
[382169658,1756529442197,-162.93927126,0.00024873,2]
[382169659,1756529442206,-500.0,0.00024873,2]
[382169660,1756529442215,-500.0,0.00024873,2]
[382169661,1756529442225,-500.0,0.00024873,2]
[382169662,1756529442235,-500.0,0.00024873,2]
[382169663,1756529442245,-500.8475885,0.00024873,2]
[382169664,1756529442254,-500.4960572,0.00024873,2]
[382169665,1756529442263,-500.0,0.00024873,2]
[382169666,1756529442274,-500.0,0.00024873,2]
[382169667,1756529442283,-501.0131976,0.00024873,2]
[382169668,1756529442297,-500.0,0.00024873,2]
[382169669,1756529442306,-500.0,0.00024873,2]
[382169670,1756529442315,-500.0,0.00024873,2]
[382169671,1756529442325,-517.41599043,0.00024873,2]
[382169672,1756529442336,-500.0,0.00024873,2]
[382169673,1756529442346,-500.0,0.00024873,2]
[382169674,1756529442356,-200.639982,0.00024873,7]
[382169675,1756529442367,-158.114877,0.00024873,7]
[382169676,1756529442377,-151.0,0.00024873,7]
[382169677,1756529442386,-152.049754,0.00024873,7]
[382169678,1756529442395,-268.331032,0.00024873,7]
[382169679,1756529442404,-2152.0,0.00024877,2]
[382169680,1756529442414,-409.0,0.00024877,2]
[382169681,1756529442423,-171407.61867333,0.00024888,2]
[382169683,1756529442749,-82876.44486661,0.00024888,2]
[382169685,1756529442759,-151.0,0.0002489,7]
[382169686,1756529442768,-151.0,0.0002489,7]
[382169687,1756529442778,-151.0,0.0002489,7]
[382169688,1756529442787,-196.948329,0.0002489,7]
[382169689,1756529442797,-2000.0,0.00024898,2]
[382169690,1756529442807,-151.0,0.00024898,7]
[382169691,1756529442816,-151.0,0.00024898,7]
[382169692,1756529442826,-151.0,0.00024898,7]
[382169693,1756529442835,-153.603736,0.00024898,7]
[382169694,1756529442845,-184.095763,0.00024898,7]
[382169695,1756529442854,-204.77636865,0.00024899,2]
[382169696,1756529442863,-3000.0,0.000249,2]
[382169697,1756529442872,-151.0,0.000249,7]
[382169698,1756529442882,-151.0,0.000249,7]
[382169699,1756529442891,-151.325215,0.000249,7]
[382169700,1756529442901,-504.09609952,0.000249,9]
[382169701,1756529442910,-151.0,0.000249,7]
[382169702,1756529442919,-151.0,0.000249,7]
[382169703,1756529442929,-153.321534,0.000249,7]
[382169704,1756529442938,-151.0,0.000249,7]
[382169705,1756529442948,-151.0,0.000249,7]
[382169706,1756529442957,-151.0,0.000249,7]
[382169707,1756529442966,-229.500264,0.000249,7]
[382169708,1756529442975,-229.500264,0.000249,7]
[382169709,1756529442985,-151.0,0.000249,7]
[382169710,1756529442995,-229.500264,0.000249,7]
[382169711,1756529443004,-229.500264,0.000249,7]
[382169712,1756529443014,-151.0,0.000249,7]
[382169713,1756529443022,-151.0,0.000249,7]
[382169714,1756529443032,-151.0,0.000249,7]
[382169715,1756529443042,-151.0,0.000249,7]
[382169716,1756529443052,-167.48874,0.000249,7]
[382169717,1756529443061,-154.917908,0.000249,7]
[382169718,1756529443071,-500.0,0.000249,9]
[382169719,1756529443081,-151.0,0.000249,7]
[382169720,1756529443091,-151.0,0.000249,7]
[382169721,1756529443100,-174.01992563,0.000249,2]
[382169722,1756529443110,-151.0,0.000249,7]
[382169723,1756529443119,-250.394779,0.000249,7]
[382169725,1756529443128,-152.382567,0.000249,7]
[382169726,1756529443138,-151.0,0.000249,7]
[382169727,1756529443148,-151.0,0.000249,7]
[382169728,1756529443158,-151.0,0.000249,7]
[382169729,1756529443168,-151.0,0.000249,7]
[382169730,1756529443178,-151.0,0.000249,7]
[382169731,1756529443188,-184.332572,0.000249,7]
[382169732,1756529443198,-151.0,0.000249,7]
[382169733,1756529443208,-151.0,0.000249,7]
[382169734,1756529443218,-157.325539,0.000249,7]
[382169735,1756529443227,-157.325539,0.000249,7]
[382169736,1756529443238,-157.325539,0.000249,7]
[382169737,1756529443248,-157.325539,0.000249,7]
[382169738,1756529443258,-313.23033,0.000249,7]
[382169739,1756529443268,-313.23033,0.000249,7]
[382169740,1756529443277,-313.23033,0.000249,7]
[382169741,1756529443289,-313.23033,0.000249,7]
[382169742,1756529443298,-151.0,0.000249,7]
[382169743,1756529443308,-151.0,0.000249,7]
[382169744,1756529443317,-269.445783,0.000249,7]
[382169745,1756529443327,-153.542376,0.000249,7]
[382169746,1756529443336,-151.0,0.000249,7]
[382169747,1756529443346,-151.0,0.000249,7]
[382169748,1756529443356,-65547.78890629,0.000249,2]
[382169749,1756529443368,-34054.21554431,0.000249,2]
[382169750,1756529443379,-234.946718,0.000249,7]
[382169751,1756529443388,-234.946718,0.000249,7]
[382169752,1756529443399,-234.946718,0.000249,7]
[382169753,1756529443408,-234.946718,0.000249,7]
[382169754,1756529443418,-151.0,0.000249,7]
[382169755,1756529443428,-151.0,0.000249,7]
[382169756,1756529443438,-151.0,0.000249,7]
[382169757,1756529443448,-826.583112,0.000249,7]
[382169758,1756529443457,-826.583112,0.000249,7]
[382169759,1756529443467,-826.583112,0.000249,7]
[382169760,1756529443476,-826.583112,0.000249,7]
[382169761,1756529443486,-151.0,0.000249,7]
[382169762,1756529443495,-151.0,0.000249,7]
[382169763,1756529443505,-151.0,0.000249,7]
[382169764,1756529443516,-151.0,0.000249,7]
[382169765,1756529443526,-151.0,0.000249,7]
[382169766,1756529443536,-151.0,0.000249,7]
[382169767,1756529443547,-151.0,0.000249,7]
[382169768,1756529443558,-279.763933,0.000249,7]
[382169769,1756529443568,-647.0,0.000249,2]
[382169770,1756529443578,-151.0,0.000249,7]
[382169771,1756529443588,-151.0,0.000249,7]
[382169772,1756529443598,-151.0,0.000249,7]
[382169773,1756529443607,-243.0371054,0.000249,7]
[382169774,1756529443617,-151.0,0.000249,7]
[382169775,1756529443627,-151.0,0.000249,7]
[382169776,1756529443636,-156.070133,0.000249,7]
[382169777,1756529443646,-151.0,0.000249,7]
[382169778,1756529443656,-156.070133,0.000249,7]
[382169779,1756529443666,-151.0,0.000249,7]
[382169781,1756529443677,-151.0,0.000249,7]
[382169783,1756529443688,-156.070133,0.000249,7]
[382169785,1756529443701,-156.070133,0.000249,7]
[382169786,1756529443711,-153.81069,0.000249,7]
[382169787,1756529443723,-1248.12363525,0.0002491,2]
[382169788,1756529443733,-3000.0,0.0002491,2]
[382169789,1756529443746,-3000.0,0.0002492,2]
[382169790,1756529443759,-3000.0,0.0002493,2]
[382169791,1756529443768,-2909.15802849,0.0002494,2]
[382169792,1756529443780,-1182.79294651,0.0002494,2]
[382169793,1756529443790,-307.89756125,0.00024944,2]
[382169794,1756529443799,-152.28477027,0.00024947,2]
[382169795,1756529443808,-154.97640292,0.00024947,2]
[382169796,1756529443818,-155.8786339,0.00024947,2]
[382169797,1756529443827,-155.30172813,0.00024947,2]
[382169798,1756529443836,-500.0,0.00024947,2]
[382169799,1756529443846,-150.597,0.00024952,2]
[382169800,1756529443855,-150.828,0.00024952,2]
[382169801,1756529443864,-195.869,0.00024952,2]
[382169802,1756529444075,-220.766,0.00024952,2]
[382169803,1756529444087,-4383.94496144,0.00024953,2]
[382169804,1756529444106,-2531.58424737,0.00024953,2]
[382169805,1756529444118,-390.9790112,0.00024953,2]
[382169806,1756529444140,-993.65881754,0.00024953,2]
[382169807,1756529444150,-277.88176164,0.00024958,2]
[382169808,1756529444160,-2000.0,0.00024962,2]
[382169809,1756529444171,-8300.16703755,0.00024963,2]
[382169810,1756529444180,-500.59696028,0.00024973,2]
[382169811,1756529444190,-501.12710994,0.00024973,2]
[382169812,1756529444199,-500.0,0.00024973,2]
[382169813,1756529444208,-500.92646272,0.00024973,2]
[382169814,1756529444218,-500.0,0.00024973,2]
[382169815,1756529444227,-500.0,0.00024973,2]
[382169816,1756529444237,-504.43584809,0.00024973,2]
[382169817,1756529444246,-504.21614388,0.00024973,2]
[382169818,1756529444256,-500.0,0.00024973,2]
[382169819,1756529444267,-500.0,0.00024973,2]
[382169820,1756529444277,-151.0,0.00024973,7]
[382169821,1756529444290,-151.0,0.00024973,7]
[382169822,1756529444299,-151.0,0.00024973,7]
[382169823,1756529444309,-151.0,0.00024973,7]
[382169824,1756529444319,-151.0,0.00024973,7]
[382169825,1756529444329,-229.500264,0.00024973,7]
[382169826,1756529444339,-229.500264,0.00024973,7]
[382169827,1756529444348,-151.0,0.00024973,7]
[382169828,1756529444357,-229.500264,0.00024973,7]
[382169829,1756529444368,-229.500264,0.00024973,7]
[382169830,1756529444378,-151.0,0.00024973,7]
[382169831,1756529444387,-151.0,0.00024973,7]
[382169832,1756529444396,-151.0,0.00024973,7]
[382169833,1756529444405,-151.0,0.00024973,7]
[382169834,1756529444414,-151.0,0.00024973,7]
[382169835,1756529444424,-151.0,0.00024973,7]
[382169836,1756529444433,-151.0,0.00024973,7]
[382169837,1756529444442,-151.0,0.00024973,7]
[382169838,1756529444452,-151.0,0.00024973,7]
[382169839,1756529444461,-151.0,0.00024973,7]
[382169840,1756529444470,-151.0,0.00024973,7]
[382169841,1756529444480,-151.0,0.00024973,7]
[382169842,1756529444489,-151.0,0.00024973,7]
[382169843,1756529444499,-151.0,0.00024973,7]
[382169844,1756529444508,-157.325539,0.00024973,7]
[382169845,1756529444518,-157.325539,0.00024973,7]
[382169846,1756529444527,-157.325539,0.00024973,7]
[382169847,1756529444537,-157.325539,0.00024973,7]
[382169848,1756529444547,-313.23033,0.00024973,7]
[382169849,1756529444558,-313.23033,0.00024973,7]
[382169850,1756529444567,-1000.0,0.00024973,2]
[382169851,1756529444577,-1000.0,0.00024973,2]
[382169852,1756529444588,-1000.0,0.00024973,2]
[382169853,1756529444597,-1000.0,0.00024973,2]
[382169854,1756529444607,-1000.0,0.00024973,2]
[382169855,1756529444617,-313.23033,0.00024973,7]
[382169856,1756529444626,-1000.0,0.00024973,2]
[382169857,1756529444635,-1000.0,0.00024973,2]
[382169858,1756529444644,-1000.0,0.00024973,2]
[382169859,1756529444654,-1000.0,0.00024973,2]
[382169860,1756529444663,-1000.0,0.00024973,2]
[382169861,1756529444673,-313.23033,0.00024973,7]
[382169862,1756529444684,-1000.0,0.00024973,2]
[382169863,1756529444694,-1000.0,0.00024973,2]
[382169864,1756529444703,-1000.0,0.00024973,2]
[382169865,1756529444713,-1000.0,0.00024973,2]
[382169866,1756529444723,-1000.0,0.00024973,2]
[382169867,1756529444733,-1000.0,0.00024973,2]
[382169868,1756529444743,-1000.0,0.00024973,2]
[382169869,1756529444752,-1000.0,0.00024973,2]
[382169870,1756529444762,-1000.0,0.00024973,2]
[382169871,1756529444771,-1000.0,0.00024973,2]
[382169872,1756529444781,-1000.0,0.00024973,2]
[382169873,1756529444790,-1000.0,0.00024973,2]
[382169874,1756529444800,-1000.0,0.00024973,2]
[382169875,1756529444809,-1000.0,0.00024973,2]
[382169876,1756529444819,-1000.0,0.00024973,2]
[382169877,1756529444828,-1000.0,0.00024973,2]
[382169878,1756529444837,-1000.0,0.00024973,2]
[382169879,1756529444847,-1000.0,0.00024973,2]
[382169880,1756529444856,-1000.0,0.00024973,2]
[382169881,1756529444865,-1000.0,0.00024973,2]
[382169882,1756529444875,-1000.0,0.00024973,2]
[382169883,1756529444884,-1000.0,0.00024973,2]
[382169884,1756529444893,-1000.0,0.00024973,2]
[382169885,1756529444903,-1000.0,0.00024973,2]
[382169886,1756529444912,-151.0,0.00024973,7]
[382169887,1756529444923,-1000.0,0.00024973,2]
[382169888,1756529444932,-1000.0,0.00024973,2]
[382169889,1756529444942,-575.208629,0.00024973,2]
[382169890,1756529444952,-151.0,0.00024973,7]
[382169891,1756529444962,-151.0,0.00024973,7]
[382169892,1756529444972,-151.0,0.00024973,7]
[382169893,1756529444981,-234.946718,0.00024973,7]
[382169894,1756529444991,-234.946718,0.00024973,7]
[382169895,1756529445000,-234.946718,0.00024973,7]
[382169896,1756529445010,-234.946718,0.00024973,7]
[382169897,1756529445019,-151.0,0.00024973,7]
[382169898,1756529445029,-151.0,0.00024973,7]
[382169899,1756529445038,-151.0,0.00024973,7]
[382169900,1756529445048,-826.583112,0.00024973,7]
[382169901,1756529445057,-826.583112,0.00024973,7]
[382169902,1756529445067,-826.583112,0.00024973,7]
[382169903,1756529445076,-826.583112,0.00024973,7]
[382169904,1756529445086,-151.0,0.00024973,7]
[382169905,1756529445095,-151.0,0.00024973,7]
[382169906,1756529445105,-151.0,0.00024973,7]
[382169907,1756529445115,-151.0,0.00024973,7]
[382169908,1756529445124,-151.0,0.00024973,7]
[382169909,1756529445134,-151.0,0.00024973,7]
[382169910,1756529445143,-151.0,0.00024973,7]
[382169911,1756529445153,-151.0,0.00024973,7]
[382169912,1756529445163,-151.0,0.00024973,7]
[382169913,1756529445172,-151.0,0.00024973,7]
[382169914,1756529445181,-151.0,0.00024973,7]
[382169915,1756529445191,-151.0,0.00024973,7]
[382169916,1756529445200,-156.070133,0.00024973,7]
[382169917,1756529445210,-151.0,0.00024973,7]
[382169918,1756529445220,-156.070133,0.00024973,7]
[382169919,1756529445229,-151.0,0.00024973,7]
[382169920,1756529445239,-154.909738,0.00024973,7]
[382169921,1756529445249,-156.070133,0.00024973,7]
[382169922,1756529445259,-156.070133,0.00024973,7]
[382169923,1756529445268,-151.0,0.0002498,7]
[382169924,1756529445278,-151.0,0.0002498,7]
[382169925,1756529445292,-1013.569145,0.0002498,5]
[382169926,1756529445301,-16600.3340751,0.0002498,2]
[382169927,1756529445310,-1189.5404989,0.00024986,2]
[382169928,1756529445320,-77694.19955554,0.0002499,2]
[382169929,1756529445329,-151.0,0.0002499,7]
[382169930,1756529445338,-151.0,0.0002499,7]
[382169931,1756529445348,-207.637334,0.0002499,7]
[382169932,1756529445358,-151.0,0.0002499,7]
[382169933,1756529445368,-238.42809,0.0002499,7]
[382169934,1756529445378,-151.0,0.0002499,7]
[382169935,1756529445388,-152.564802,0.0002499,7]
[382169936,1756529445398,-229.500264,0.0002499,7]
[382169937,1756529445408,-229.500264,0.0002499,7]
[382169938,1756529445417,-151.0,0.0002499,7]
[382169939,1756529445426,-229.500264,0.0002499,7]
[382169940,1756529445436,-229.500264,0.0002499,7]
[382169941,1756529445447,-151.0,0.0002499,7]
[382169942,1756529445457,-155.404119,0.0002499,7]
[382169943,1756529445467,-151.0,0.0002499,7]
[382169944,1756529445477,-151.0,0.0002499,7]
[382169945,1756529445487,-151.0,0.0002499,7]
[382169946,1756529445497,-157.444891,0.0002499,7]
[382169947,1756529445507,-151.0,0.0002499,7]
[382169948,1756529445515,-156.030943,0.0002499,7]
[382169949,1756529445524,-151.0,0.0002499,7]
[382169950,1756529445532,-151.0,0.0002499,7]
[382169951,1756529445540,-151.0,0.0002499,7]
[382169952,1756529445547,-151.0,0.0002499,7]
[382169953,1756529445555,-151.0,0.0002499,7]
[382169954,1756529445574,-289.739313,0.0002499,7]
[382169955,1756529445585,-157.325539,0.0002499,7]
[382169956,1756529445596,-157.325539,0.0002499,7]
[382169957,1756529445606,-157.325539,0.0002499,7]
[382169958,1756529445616,-157.325539,0.0002499,7]
[382169959,1756529445626,-313.23033,0.0002499,7]
[382169960,1756529445636,-313.23033,0.0002499,7]
[382169961,1756529445645,-313.23033,0.0002499,7]
[382169962,1756529445655,-313.23033,0.0002499,7]
[382169963,1756529445665,-151.0,0.0002499,7]
[382169964,1756529445675,-202.118102,0.0002499,7]
[382169965,1756529445686,-151.0,0.0002499,7]
[382169966,1756529445696,-204.65407,0.0002499,7]
[382169967,1756529445706,-16600.3340751,0.0002499,2]
[382169968,1756529445717,-234.946718,0.0002499,7]
[382169969,1756529445727,-234.946718,0.0002499,7]
[382169970,1756529445738,-234.946718,0.0002499,7]
[382169971,1756529445748,-234.946718,0.0002499,7]
[382169972,1756529445758,-151.0,0.0002499,7]
[382169973,1756529445767,-151.0,0.0002499,7]
[382169974,1756529445777,-151.0,0.0002499,7]
[382169975,1756529445787,-826.583112,0.0002499,7]
[382169976,1756529445797,-826.583112,0.0002499,7]
[382169977,1756529445807,-826.583112,0.0002499,7]
[382169978,1756529445816,-826.583112,0.0002499,7]
[382169979,1756529445826,-151.0,0.0002499,7]
[382169980,1756529445836,-151.0,0.0002499,7]
[382169981,1756529445846,-298.373636,0.0002499,7]
[382169982,1756529445855,-272.733096,0.0002499,7]
[382169983,1756529445865,-151.0,0.0002499,7]
[382169984,1756529445875,-151.0,0.0002499,7]
[382169985,1756529445884,-151.0,0.0002499,7]
[382169986,1756529445893,-151.0,0.0002499,7]
[382169987,1756529445903,-151.0,0.0002499,7]
[382169988,1756529445912,-151.0,0.0002499,7]
[382169989,1756529445922,-151.0,0.0002499,7]
[382169990,1756529445931,-151.0,0.0002499,7]
[382169991,1756529445941,-156.070133,0.0002499,7]
[382169992,1756529445950,-151.0,0.0002499,7]
[382169993,1756529445960,-156.070133,0.0002499,7]
[382169994,1756529445969,-151.0,0.0002499,7]
[382169995,1756529445979,-156.070133,0.0002499,7]
[382169996,1756529445989,-156.070133,0.0002499,7]
[382169997,1756529445999,-10826.1164051,0.00025,7]
[382169998,1756529446009,-45029.53109826,0.00025,14]
[382169999,1756529446018,-5138.01815537,0.00025,7]
[382170000,1756529446028,-425.65682239,0.00025,7]
[382170001,1756529446037,-261.05,0.00025,14]
[382170002,1756529446047,-151.0,0.00025,7]
[382170003,1756529446057,-151.0,0.00025,7]
[382170004,1756529446066,-151.0,0.00025,7]
[382170006,1756529446076,-151.0,0.00025,7]
[382170008,1756529446086,-229.500264,0.00025,7]
[382170009,1756529446095,-229.500264,0.00025,7]
[382170011,1756529446105,-151.0,0.00025,7]
[382170013,1756529446114,-229.500264,0.00025,7]
[382170015,1756529446124,-229.50027,0.00025,7]
[382170017,1756529446134,-151.0,0.00025,7]
[382170019,1756529446143,-151.0,0.00025,7]
[382170021,1756529446153,-151.0,0.00025,7]
[382170023,1756529446162,-1000.0,0.00025,5]